bitfinex-derivatives/quotes_BNBF0:USTF0_20251219
["timestamp","ask_amount","ask_price","bid_price","bid_amount"]
[1766178040754,0.20207182,861.54,860.19,0.7226697]
[1766178040958,0.20207182,861.54,860.2,0.7226697]
[1766178041257,0.20207182,861.54,860.21,0.7226697]
[1766178041457,0.20207182,861.54,860.22,0.7226697]
[1766178041652,0.20207182,861.54,860.23,0.7226697]
[1766178041852,1.73359641,861.51,860.24,0.7226697]
[1766178042056,1.73359641,861.53,860.25,0.7226697]
[1766178042259,1.73359641,861.53,860.26,0.7226697]
[1766178042455,1.73359641,861.53,860.27,0.7226697]
[1766178042658,1.73359641,861.53,860.28,0.7226697]
[1766178042858,1.73359641,861.53,860.29,0.7226697]
[1766178043057,1.73359641,861.53,860.3,0.7226697]
[1766178043260,1.73359641,861.53,860.31,0.7226697]
[1766178043459,1.73359641,861.53,860.32,0.7226697]
[1766178043661,1.73359641,861.5,860.33,0.7226697]
[1766178043861,1.73359641,861.5,860.34,0.7226697]
[1766178044057,1.73359641,861.5,860.07,0.86078468]
[1766178044257,1.73359641,861.48,860.08,0.72291914]
[1766178044457,1.73359641,861.48,860.09,0.72291914]
[1766178044757,1.73359641,861.48,860.1,0.72291914]
[1766178044961,1.73359641,861.48,860.11,0.72291914]
[1766178045161,1.73359641,861.48,860.12,0.72291914]
[1766178045363,1.73359641,861.48,860.13,0.72291914]
[1766178045563,1.73359641,861.48,860.14,0.72291914]
[1766178045859,1.73359641,861.45,860.15,0.72291914]
[1766178046064,1.73359641,861.45,860.16,0.72291914]
[1766178046263,1.73359641,861.39,860.17,0.72291914]
[1766178046459,1.73359641,861.39,860.18,0.72291914]
[1766178046763,1.73359641,861.39,860.19,0.72291914]
[1766178046960,1.73359641,861.39,860.2,0.72291914]
[1766178047161,1.73359641,861.4,860.21,0.72291914]
[1766178047361,1.73359641,861.38,859.94,0.86078468]
[1766178047559,1.73359641,861.38,859.95,0.72288253]
[1766178047762,1.73359641,861.38,859.96,0.72288253]
[1766178047958,1.73359641,861.38,859.97,0.72288253]
[1766178048163,1.73359641,861.38,859.98,0.72288253]
[1766178048363,1.73359641,861.35,859.99,0.72288253]
[1766178048663,1.73359641,861.35,860.0,0.72288253]
[1766178048864,1.73359641,861.35,860.01,0.72288253]
[1766178049161,1.73359641,861.35,860.02,0.72288253]
[1766178049361,1.73359641,861.34,860.03,0.72288253]
[1766178049560,1.73359641,861.34,860.04,0.72288253]
[1766178049758,1.73359641,861.33,860.05,0.72288253]
[1766178049961,1.73359641,861.31,860.06,0.72288253]
[1766178050161,1.73359641,861.31,860.07,0.72288253]
[1766178050364,1.73359641,861.31,860.08,0.72288253]
[1766178050567,1.73359641,861.31,860.09,0.72288253]
[1766178050761,1.73359641,861.31,860.1,0.72288253]
[1766178050967,1.73359641,861.31,860.11,0.72288253]
[1766178051161,1.73359641,861.31,860.12,0.72288253]
[1766178051467,1.73359641,861.31,860.13,0.72288253]
[1766178051666,1.73359641,861.31,860.14,0.72288253]
[1766178051863,1.73359641,861.31,860.15,0.72288253]
[1766178052063,1.73359641,861.32,860.16,0.72288253]
[1766178052268,1.73359641,861.32,859.88,0.86078468]
[1766178052466,1.73359641,861.32,859.89,0.7229542]
[1766178052662,1.73359641,861.32,859.9,0.7229542]
[1766178052962,1.73359641,861.32,859.91,0.7229542]
[1766178053163,1.73359641,861.32,859.92,0.7229542]
[1766178053363,1.73359641,861.32,859.93,0.7229542]
[1766178053567,1.73359641,861.32,859.94,0.7229542]
[1766178053768,1.73359641,861.32,859.95,0.7229542]
[1766178053967,1.73359641,861.32,859.96,0.7229542]
[1766178054166,1.73359641,861.32,859.88,0.86078468]
[1766178054167,1.73359641,861.32,859.97,0.7229542]
[1766178054371,1.73359641,861.32,859.98,0.7229542]
[1766178054567,1.73359641,861.32,859.99,0.7229542]
[1766178054766,1.73359641,861.32,860.0,0.7229542]
[1766178054966,1.73359641,861.32,860.01,0.7229542]
[1766178055167,1.73359641,861.32,860.02,0.7229542]
[1766178055371,1.73359641,861.32,860.03,0.7229542]
[1766178055570,1.73359641,861.32,860.04,0.7229542]
[1766178055871,1.73359641,861.21,859.77,0.86078468]
[1766178056173,1.73359641,861.22,859.78,0.72344654]
[1766178056370,1.73359641,861.22,859.79,0.72344654]
[1766178056570,1.73359641,861.22,859.8,0.72344654]
[1766178056770,1.73359641,861.22,859.81,0.72344654]
[1766178056971,1.73359641,861.22,859.82,0.72344654]
[1766178057168,1.73359641,861.22,859.83,0.72344654]
[1766178057369,1.73359641,861.22,859.84,0.72344654]
[1766178057569,1.73359641,861.22,859.85,0.72344654]
[1766178057774,1.73359641,861.22,859.86,0.72315692]
[1766178057970,1.73359641,861.22,859.87,0.72315692]
[1766178058170,1.73359641,861.23,859.88,0.72315692]
[1766178058474,1.73359641,861.23,859.89,0.72315692]
[1766178058673,1.73359641,861.23,859.9,0.72315692]
[1766178058873,1.73359641,861.23,859.91,0.72315692]
[1766178059074,1.73359641,861.23,859.92,0.72315692]
[1766178059374,1.73359641,861.21,859.93,0.72315692]
[1766178059577,1.73359641,861.21,859.94,0.72315692]
[1766178059871,1.73359641,861.21,859.95,0.72315692]
[1766178060072,1.73359641,861.21,859.75,9.82750267]
[1766178060073,1.73359641,861.21,859.96,0.72315692]
[1766178060274,1.73359641,861.2,859.97,0.72315692]
[1766178060470,1.73359641,861.15,859.75,9.82750267]
[1766178060677,1.73359641,861.15,859.76,0.72243902]
[1766178060973,1.73359641,861.15,859.77,0.72243902]
[1766178061176,1.73359641,861.15,859.78,0.72243902]
[1766178061378,1.73359641,861.15,859.79,0.72243902]
[1766178061672,1.73359641,861.15,859.8,0.72243902]
[1766178061874,1.73359641,861.15,859.81,0.72243902]
[1766178062076,1.73359641,861.16,859.82,0.72243902]
[1766178062275,1.73359641,861.16,859.83,0.72243902]
[1766178062473,1.73359641,861.16,859.84,0.72243902]
[1766178062776,1.73359641,861.16,859.85,0.72243902]
[1766178062973,1.73359641,861.16,859.86,0.72243902]
[1766178063178,1.73359641,861.16,859.87,0.72243902]
[1766178063375,1.73359641,861.15,859.88,0.72243902]
[1766178063675,1.73359641,861.15,859.89,0.72243902]
[1766178063875,1.73359641,861.15,859.9,0.72243902]
[1766178064077,1.73359641,861.15,859.91,0.72243902]
[1766178064275,1.73359641,861.15,859.92,0.72243902]
[1766178064479,1.73359641,861.1,859.75,9.82750267]
[1766178064680,1.73359641,861.1,859.76,0.72265754]
[1766178064879,1.73359641,861.1,859.77,0.72265754]
[1766178065080,1.73359641,861.24,859.78,0.72265754]
[1766178065277,1.73359641,861.23,859.79,0.72265754]
[1766178065478,1.73359641,861.28,859.8,0.72265754]
[1766178065676,1.73359641,861.28,859.81,0.72265754]
[1766178065977,1.73359641,861.28,859.82,0.72265754]
[1766178066179,1.73359641,861.28,859.83,0.72265754]
[1766178066377,1.73359641,861.28,859.84,0.72265754]
[1766178066576,1.73359641,861.28,859.85,0.72265754]
[1766178066780,1.73359641,861.28,859.86,0.72265754]
[1766178067075,1.73359641,861.28,859.87,0.72265754]
[1766178067276,1.73359641,861.28,859.79,0.86091378]
[1766178067277,1.73359641,861.27,859.88,0.72265754]
[1766178067579,1.73359641,861.27,859.89,0.72265754]
[1766178067776,1.73359641,861.27,859.9,0.72265754]
[1766178067981,1.73359641,861.27,859.91,0.72265754]
[1766178068182,1.73359641,861.28,859.92,0.72265754]
[1766178068384,1.73359641,861.12,859.75,9.82750267]
[1766178068579,1.73359641,861.12,859.76,0.72226867]
[1766178068779,1.73359641,861.12,859.77,0.72226867]
[1766178068981,1.73359641,861.12,859.78,0.72226867]
[1766178069181,1.73359641,861.13,859.79,0.72226867]
[1766178069383,1.73359641,861.13,859.8,0.72226867]
[1766178069583,1.73359641,861.13,859.81,0.72226867]
[1766178069778,1.73359641,861.13,859.82,0.72226867]
[1766178070079,1.73359641,861.13,859.83,0.72226867]
[1766178070383,1.73359641,861.16,859.84,0.72226867]
[1766178070682,1.73359641,861.17,859.85,0.72226867]
[1766178070979,1.73359641,861.17,859.86,0.72226867]
[1766178071182,1.73359641,861.17,859.75,9.82750267]
[1766178071183,1.73359641,861.17,859.87,0.72226867]
[1766178071380,1.73359641,861.17,859.88,0.72226867]
[1766178071582,1.73359641,861.17,859.89,0.72226867]
[1766178071783,1.73359641,861.17,859.9,0.72226867]
[1766178072084,1.73359641,861.17,859.91,0.72226867]
[1766178072378,1.73359641,861.18,859.92,0.72226867]
[1766178072579,1.73359641,861.18,859.75,9.82750267]
[1766178072783,1.73359641,861.18,859.76,0.72177785]
[1766178072983,1.73359641,861.18,859.77,0.72177785]
[1766178073186,1.73359641,861.18,859.78,0.72177785]
[1766178073381,1.73359641,861.18,859.79,0.72177785]
[1766178073685,1.73359641,861.18,859.8,0.72177785]
[1766178073885,1.73359641,861.18,859.81,0.72177785]
[1766178074085,1.73359641,861.19,859.82,0.72177785]
[1766178074280,1.73359641,861.19,859.83,0.72177785]
[1766178074481,1.73359641,861.19,859.84,0.72177785]
[1766178074781,1.73359641,861.18,859.85,0.72177785]
[1766178074985,1.73359641,861.18,859.86,0.72177785]
[1766178075284,1.73359641,861.19,859.87,0.72177785]
[1766178075480,1.73359641,861.19,859.88,0.72177785]
[1766178075686,1.73359641,861.19,859.89,0.72177785]
[1766178075884,1.73359641,861.19,859.9,0.72177785]
[1766178076086,1.73359641,861.19,859.75,9.82750267]
[1766178076087,1.73359641,861.19,859.91,0.72177785]
[1766178076284,1.73359641,861.16,859.75,9.82750267]
[1766178076587,1.73359641,861.16,859.76,0.72186284]
[1766178076785,1.73359641,861.16,859.77,0.72186284]
[1766178076988,1.73359641,861.16,859.78,0.72186284]
[1766178077288,1.73359641,861.16,859.79,0.72186284]
[1766178077489,1.73359641,861.16,859.8,0.72186284]
[1766178077689,1.73359641,861.16,859.81,0.72186284]
[1766178077889,1.73359641,861.15,859.82,0.72186284]
[1766178078086,1.73359641,861.15,859.83,0.72186284]
[1766178078290,1.73359641,861.15,859.84,0.72186284]
[1766178078587,1.73359641,861.15,859.75,9.82750267]
[1766178078588,1.73359641,861.15,859.85,0.72186284]
[1766178078787,1.73359641,861.15,859.75,9.82750267]
[1766178078986,1.73359641,861.15,859.76,0.72180385]
[1766178079290,1.73359641,861.15,859.77,0.72180385]
[1766178079491,1.73359641,861.15,859.78,0.72180385]
[1766178079687,1.73359641,861.14,859.79,0.72180385]
[1766178079889,1.73359641,861.14,859.8,0.72180385]
[1766178080090,1.73359641,861.14,859.81,0.72180385]
[1766178080288,1.73359641,861.14,859.82,0.72180385]
[1766178080487,1.73359641,861.14,859.83,0.72180385]
[1766178080686,1.73359641,861.14,859.84,0.72180385]
[1766178080888,1.73359641,861.14,859.75,9.82750267]
[1766178081190,1.73359641,861.15,859.76,0.7219696]
[1766178081388,1.73359641,861.15,859.77,0.7219696]
[1766178081691,1.73359641,861.15,859.78,0.7219696]
[1766178081993,0.20207182,861.54,859.75,9.82750267]
[1766178081994,1.73359641,861.09,859.75,9.82750267]
[1766178082287,1.73359641,861.09,859.76,0.72209828]
[1766178082489,1.73359641,861.09,859.77,0.72209828]
[1766178082792,1.73359641,861.09,859.78,0.72209828]
[1766178082992,1.73359641,861.09,859.75,9.82750267]
[1766178083196,1.73359641,861.09,859.76,0.72219761]
[1766178083490,1.73359641,861.09,859.77,0.72219761]
[1766178083692,1.73359641,861.09,859.78,0.72219761]
[1766178083893,1.73359641,861.09,859.75,9.82750267]
[1766178084193,1.73359641,861.09,859.76,0.72218367]
[1766178084388,0.20207182,861.54,859.75,9.82750267]
[1766178086195,1.7347168,861.07,859.75,9.82750267]
[1766178086792,1.7347168,861.07,859.51,0.20225326]
[1766178087090,1.7347168,861.07,859.52,0.72215281]
[1766178087394,1.7347168,861.07,859.53,0.72215281]
[1766178087589,1.7347168,861.07,859.54,0.72215281]
[1766178087789,1.7347168,861.07,859.55,0.72215281]
[1766178087990,1.7347168,861.0,859.56,0.72215281]
[1766178088190,1.7347168,861.01,859.57,0.72215281]
[1766178088395,1.7347168,861.01,859.58,0.72215281]
[1766178088690,1.7347168,861.01,859.59,0.72215281]
[1766178088890,1.7347168,861.01,859.6,0.72215281]
[1766178089090,1.7347168,861.01,859.61,0.72215281]
[1766178089288,1.7347168,861.01,859.41,0.20227795]
[1766178089289,1.7347168,861.01,859.62,0.72215281]
[1766178089490,1.7347168,861.01,859.63,0.72215281]
[1766178089693,1.7347168,861.01,859.64,0.72215281]
[1766178089889,1.7347168,861.01,859.65,0.72215281]
[1766178090090,1.7347168,861.01,859.66,0.72215281]
[1766178090389,1.7347168,861.01,859.41,0.20227795]
[1766178090592,1.7347168,861.01,859.42,0.72188657]
[1766178090793,1.7347168,861.01,859.43,0.72188657]
[1766178090994,1.7347168,861.01,859.44,0.72188657]
[1766178091194,1.7347168,861.02,859.45,0.72188657]
[1766178091391,1.7347168,861.02,859.46,0.72188657]
[1766178091592,1.7347168,861.02,859.47,0.72188657]
[1766178091895,1.7347168,861.08,859.48,0.72188657]
[1766178092096,1.7347168,861.08,859.49,0.72188657]
[1766178092292,1.7347168,861.08,859.5,0.72188657]
[1766178092494,1.7347168,861.08,859.51,0.72188657]
[1766178092692,1.7347168,861.08,859.52,0.72188657]
[1766178092894,1.7347168,861.08,859.53,0.72188657]
[1766178093094,1.7347168,861.07,859.54,0.72188657]
[1766178093298,1.7347168,861.07,859.55,0.72188657]
[1766178093497,1.7347168,861.07,859.56,0.72188657]
[1766178093695,1.7347168,861.07,859.57,0.72188657]
[1766178093897,1.7347168,861.07,859.58,0.72188657]
[1766178094194,1.7347168,861.07,859.59,0.72188657]
[1766178094499,1.7347168,861.07,859.6,0.72188657]
[1766178094696,1.7347168,861.07,859.61,0.72188657]
[1766178094893,1.7347168,861.07,859.62,0.72188657]
[1766178095116,1.7347168,861.07,859.63,0.72188657]
[1766178095298,1.7347168,861.07,859.64,0.72188657]
[1766178095598,1.7347168,861.07,859.65,0.72188657]
[1766178095798,1.7347168,861.07,859.66,0.72188657]
[1766178095995,1.7347168,861.07,859.67,0.72188657]
[1766178096198,1.7347168,861.06,859.68,0.72188657]
[1766178096397,1.7347168,861.06,859.69,0.72188657]
[1766178096697,1.7347168,861.06,859.7,0.72188657]
[1766178096899,1.7347168,861.06,859.44,0.86091378]
[1766178096900,1.7347168,861.06,859.71,0.72188657]
[1766178097099,1.7347168,861.06,859.72,0.72188657]
[1766178097301,1.7347168,861.05,859.73,0.72188657]
[1766178097497,1.7347168,861.05,859.45,0.86091378]
[1766178097697,1.7347168,861.05,859.46,0.72170262]
[1766178097898,1.7347168,861.05,859.47,0.72170262]
[1766178098101,1.7347168,861.05,859.48,0.72170262]
[1766178098305,1.7347168,861.05,859.49,0.72170262]
[1766178098602,1.7347168,861.05,859.5,0.72170262]
[1766178098898,1.7347168,861.05,859.51,0.72170262]
[1766178099098,1.7347168,861.05,859.52,0.72170262]
[1766178099300,1.7347168,861.04,859.53,0.72170262]
[1766178099498,1.7347168,861.04,859.54,0.72170262]
[1766178099698,1.7347168,861.04,859.55,0.72170262]
[1766178099900,1.7347168,861.04,859.56,0.72170262]
[1766178100104,1.7347168,861.04,859.57,0.72170262]
[1766178100305,1.7347168,861.03,859.58,0.72170262]
[1766178100505,1.7347168,861.03,859.59,0.72170262]
[1766178100705,1.7347168,861.03,859.6,0.72170262]
[1766178100906,1.7347168,861.03,859.61,0.72170262]
[1766178101205,1.7347168,861.02,859.62,0.72170262]
[1766178101401,1.7347168,861.02,859.63,0.72170262]
[1766178101706,1.7347168,861.02,859.64,0.72170262]
[1766178101902,1.7347168,861.01,859.65,0.72170262]
[1766178102206,1.7347168,861.0,859.66,0.72170262]
[1766178102501,1.7347168,861.0,859.67,0.72170262]
[1766178102706,1.7347168,861.0,859.68,0.72170262]
[1766178103001,1.7347168,861.0,859.69,0.72170262]
[1766178103205,1.7347168,860.99,859.7,0.72170262]
[1766178103506,1.7347168,860.99,859.71,0.72170262]
[1766178103706,1.7347168,860.99,859.72,0.72170262]
[1766178104005,1.7347168,860.99,859.73,0.72170262]
[1766178104206,1.7347168,860.98,859.74,0.72170262]
[1766178104508,1.7347168,860.98,859.75,0.72170262]
[1766178104706,1.7347168,860.98,859.76,0.72170262]
[1766178104907,1.7347168,860.98,859.77,0.72170262]
[1766178105107,1.7347168,860.98,859.78,0.72170262]
[1766178105307,1.7347168,860.97,859.79,0.72170262]
[1766178105606,1.7347168,860.97,859.52,0.86091378]
[1766178105806,1.7347168,860.97,859.53,0.72298912]
[1766178106009,1.7347168,860.97,859.54,0.72298912]
[1766178106207,1.7347168,860.96,859.55,0.72298912]
[1766178106409,1.7347168,860.96,859.56,0.72298912]
[1766178106708,1.7347168,860.96,859.57,0.72298912]
[1766178106905,1.7347168,860.96,859.58,0.72298912]
[1766178107106,1.7347168,860.96,859.59,0.72298912]
[1766178107310,1.7347168,860.95,859.6,0.72298912]
[1766178107610,1.7347168,860.95,859.61,0.72298912]
[1766178107807,1.7347168,860.95,859.62,0.72298912]
[1766178108005,1.7347168,861.15,859.73,0.86091378]
[1766178108208,1.7347168,861.14,859.74,0.72298912]
[1766178108406,1.7347168,861.14,859.75,0.72298912]
[1766178108710,1.7347168,861.14,859.76,0.72298912]
[1766178108909,1.7347168,861.14,859.77,0.72298912]
[1766178109210,1.7347168,861.13,859.78,0.72298912]
[1766178109411,1.7347168,861.13,859.79,0.72298912]
[1766178109607,1.7347168,861.13,859.8,0.72298912]
[1766178109812,1.7347168,861.13,859.81,0.72298912]
[1766178110010,1.7347168,861.13,859.82,0.72298912]
[1766178110210,1.7347168,861.13,859.83,0.72298912]
[1766178110410,1.7347168,861.13,859.84,0.72298912]
[1766178110710,1.7347168,861.13,859.85,0.72298912]
[1766178111010,1.7347168,861.13,859.86,0.72298912]
[1766178111213,1.7347168,861.12,859.87,0.72298912]
[1766178111413,1.7347168,861.12,859.88,0.72298912]
[1766178111613,1.7347168,861.12,859.89,0.72298912]
[1766178111913,1.7347168,861.12,859.9,0.72298912]
[1766178112211,1.7347168,861.12,859.91,0.72298912]
[1766178112413,1.7347168,861.12,859.92,0.72298912]
[1766178112710,1.7347168,861.12,859.93,0.72298912]
[1766178112912,1.7347168,861.12,859.94,0.72298912]
[1766178113114,1.7347168,861.12,859.95,0.72298912]
[1766178113410,1.7347168,861.11,859.96,0.72298912]
[1766178113712,1.7347168,861.11,859.97,0.72298912]
[1766178113913,1.7347168,861.11,859.98,0.72298912]
[1766178114209,1.7347168,861.11,859.99,0.72298912]
[1766178114510,1.7347168,861.11,860.0,0.72298912]
[1766178114813,1.7347168,861.11,860.01,0.72298912]
[1766178115109,1.7347168,861.11,860.02,0.72298912]
[1766178115308,1.7347168,861.1,860.03,0.72298912]
[1766178115510,1.7347168,861.1,860.04,0.72298912]
[1766178115713,1.7347168,861.1,860.05,0.72298912]
[1766178116013,1.7347168,861.1,860.06,0.72298912]
[1766178116211,1.7347168,861.1,859.78,0.86091378]
[1766178116515,1.7347168,861.1,859.79,0.72370318]
[1766178116710,1.7347168,861.1,859.8,0.72370318]
[1766178116910,1.7347168,861.1,859.81,0.72370318]
[1766178117115,1.7347168,861.1,859.82,0.72370318]
[1766178117312,1.7347168,861.1,859.83,0.72370318]
[1766178117511,1.7347168,861.1,859.84,0.72370318]
[1766178117712,1.7347168,861.1,859.85,0.72370318]
[1766178117916,1.7347168,861.09,859.86,0.72370318]
[1766178118114,1.7347168,861.09,859.87,0.72370318]
[1766178118416,1.7347168,861.09,859.88,0.72370318]
[1766178118617,1.7347168,861.09,859.89,0.72370318]
[1766178118818,1.7347168,861.09,859.9,0.72370318]
[1766178119018,1.7347168,861.09,859.91,0.72370318]
[1766178119219,1.7347168,861.09,859.92,0.72370318]
[1766178119420,1.7347168,861.09,859.93,0.72370318]
[1766178119716,1.7347168,861.09,859.94,0.72370318]
[1766178119916,1.7347168,861.09,859.95,0.72370318]
[1766178120120,1.7347168,861.09,859.96,0.72370318]
[1766178120318,1.7347168,861.09,859.97,0.72370318]
[1766178120520,1.7347168,861.09,859.98,0.72370318]
[1766178120721,1.7347168,861.14,859.99,0.72370318]
[1766178120921,1.7347168,861.14,860.0,0.72370318]
[1766178121121,1.7347168,861.14,860.01,0.72370318]
[1766178121322,1.7347168,861.14,860.02,0.72370318]
[1766178121524,1.7347168,861.14,860.03,0.72370318]
[1766178121818,1.7347168,861.14,860.04,0.72370318]
[1766178122018,1.7347168,861.08,860.05,0.72370318]
[1766178122223,1.7347168,861.08,859.77,0.86091378]
[1766178122419,1.7347168,861.09,859.78,0.72318137]
[1766178122624,1.7347168,861.09,859.79,0.72318137]
[1766178122824,1.7347168,861.09,859.8,0.72318137]
[1766178123022,1.7347168,861.09,859.81,0.72318137]
[1766178123222,1.7347168,861.09,859.82,0.72318137]
[1766178123425,1.7347168,861.09,859.83,0.72318137]
[1766178123724,1.7347168,861.09,859.84,0.72318137]
[1766178123920,1.7347168,861.09,859.85,0.72318137]
[1766178124125,1.7347168,861.09,859.86,0.72318137]
[1766178124325,1.7347168,861.09,859.87,0.72318137]
[1766178124524,1.7347168,861.09,859.88,0.72318137]
[1766178124824,1.7347168,861.09,859.89,0.72318137]
[1766178125024,1.7347168,861.09,859.9,0.72318137]
[1766178125222,1.7347168,861.09,859.91,0.72318137]
[1766178125426,1.7347168,861.09,859.92,0.72318137]
[1766178125623,1.7347168,861.09,859.93,0.72318137]
[1766178125822,1.7347168,861.09,859.94,0.72318137]
[1766178126026,1.7347168,861.09,859.95,0.72318137]
[1766178126225,1.7347168,861.09,859.96,0.72318137]
[1766178126526,1.7347168,861.09,859.97,0.72318137]
[1766178126827,1.7347168,861.09,859.98,0.72318137]
[1766178127126,1.7347168,861.09,859.99,0.72318137]
[1766178127328,1.7347168,861.09,860.0,0.72318137]
[1766178127527,1.7347168,861.09,860.01,0.72318137]
[1766178127727,1.7347168,861.09,860.02,0.72318137]
[1766178128028,1.7347168,861.08,860.03,0.72318137]
[1766178128228,1.7347168,861.08,860.04,0.72318137]
[1766178128425,1.7347168,861.08,859.76,0.86091378]
[1766178128628,1.7347168,861.08,859.77,0.72287723]
[1766178128931,1.7347168,861.08,859.78,0.72287723]
[1766178129228,1.7347168,861.08,859.79,0.72287723]
[1766178129431,1.7347168,861.08,859.8,0.72287723]
[1766178129626,1.7347168,861.08,859.81,0.72287723]
[1766178129825,1.7347168,861.08,859.82,0.72287723]
[1766178130028,1.7347168,861.08,859.83,0.72287723]
[1766178130231,1.7347168,861.08,859.84,0.72287723]
[1766178130432,1.7347168,861.08,859.85,0.72287723]
[1766178130628,1.7347168,861.08,859.86,0.72287723]
[1766178130832,1.7347168,861.08,859.87,0.72287723]
[1766178131029,1.7347168,861.08,859.88,0.72287723]
[1766178131232,1.7347168,861.08,859.76,0.86091378]
[1766178131233,1.7347168,861.09,859.89,0.72287723]
[1766178131433,1.7347168,861.09,859.9,0.72287723]
[1766178131734,1.7347168,861.09,859.91,0.72287723]
[1766178132033,1.7347168,861.15,859.92,0.72287723]
[1766178132229,1.7347168,861.15,859.93,0.72287723]
[1766178132432,1.7347168,861.15,859.94,0.72287723]
[1766178132633,1.7347168,861.15,859.95,0.72287723]
[1766178132833,1.7347168,861.16,859.96,0.72287723]
[1766178133030,1.7347168,861.16,859.97,0.72287723]
[1766178133232,1.7347168,861.16,859.98,0.72287723]
[1766178133433,1.7347168,861.16,859.99,0.72287723]
[1766178133633,1.7347168,861.16,860.0,0.72287723]
[1766178133834,1.7347168,861.16,860.01,0.72287723]
[1766178134031,1.7347168,861.16,860.02,0.72287723]
[1766178134232,1.7347168,861.16,860.03,0.72287723]
[1766178134536,1.7347168,861.16,860.04,0.72287723]
[1766178134734,1.7347168,861.16,860.05,0.72287723]
[1766178134932,1.7347168,861.16,860.06,0.72287723]
[1766178135232,1.7347168,861.16,860.07,0.72287723]
[1766178135431,1.7347168,861.16,860.08,0.72287723]
[1766178135631,1.7347168,861.16,860.09,0.72287723]
[1766178135831,1.7347168,861.16,859.82,0.86091378]
[1766178136032,1.7347168,861.16,859.83,0.72288147]
[1766178136232,1.7347168,861.16,859.84,0.72288147]
[1766178136435,1.7347168,861.16,859.85,0.72288147]
[1766178136637,1.7347168,861.16,859.86,0.72288147]
[1766178136936,1.7347168,861.16,859.87,0.72288147]
[1766178137136,1.7347168,861.16,859.88,0.72288147]
[1766178137337,1.7347168,861.16,859.89,0.72288147]
[1766178137533,1.7347168,861.16,859.9,0.72288147]
[1766178137733,1.7347168,861.16,859.91,0.72288147]
[1766178137932,1.7347168,861.16,859.92,0.72288147]
[1766178138136,1.7347168,861.16,859.93,0.72288147]
[1766178138334,1.7347168,861.16,859.94,0.72288147]
[1766178138534,1.7347168,861.16,859.95,0.72288147]
[1766178138733,1.7347168,861.16,859.96,0.72288147]
[1766178139033,1.7347168,861.16,859.97,0.72288147]
[1766178139234,1.7347168,861.17,859.98,0.72288147]
[1766178139433,1.7347168,861.17,859.99,0.72288147]
[1766178139638,1.7347168,861.17,860.0,0.72288147]
[1766178139836,1.7347168,861.17,860.01,0.72288147]
[1766178140038,1.7347168,861.17,860.02,0.72288147]
[1766178140340,1.7347168,861.17,860.03,0.72288147]
[1766178140539,1.7347168,861.17,860.04,0.72288147]
[1766178140736,1.7347168,861.17,860.05,0.72288147]
[1766178140936,1.7347168,861.17,860.06,0.72288147]
[1766178141139,1.7347168,861.17,860.07,0.72288147]
[1766178141339,1.7347168,861.17,860.08,0.72288147]
[1766178141535,1.7347168,861.17,860.09,0.72288147]
[1766178141740,1.7347168,861.17,859.81,0.86091378]
[1766178142041,1.7347168,861.15,859.82,0.72313209]
[1766178142235,1.7347168,861.15,859.83,0.72313209]
[1766178142435,1.7347168,861.15,859.84,0.72313209]
[1766178142635,1.7347168,861.15,859.85,0.72313209]
[1766178142837,1.7347168,861.15,859.86,0.72313209]
[1766178143039,1.7347168,861.15,859.87,0.72313209]
[1766178143239,1.7347168,861.15,859.88,0.72313209]
[1766178143543,1.7347168,861.15,859.89,0.72313209]
[1766178143753,1.7347168,861.15,859.9,0.72313209]
[1766178143941,1.7347168,861.15,859.91,0.72313209]
[1766178144243,1.7347168,861.16,859.92,0.72313209]
[1766178144442,1.7347168,861.16,859.93,0.72313209]
[1766178144641,1.7347168,861.16,859.94,0.72313209]
[1766178144841,1.7347168,861.16,859.95,0.72313209]
[1766178145038,1.7347168,861.16,859.96,0.72313209]
[1766178145342,1.7347168,861.16,859.97,0.72313209]
[1766178145544,1.7347168,861.16,859.98,0.72313209]
[1766178145741,1.7347168,861.16,859.99,0.72313209]
[1766178145945,1.7347168,861.16,860.0,0.72313209]
[1766178146140,1.7347168,861.16,860.01,0.72313209]
[1766178146341,1.7347168,861.16,860.02,0.72313209]
[1766178146539,1.7347168,861.16,860.03,0.72313209]
[1766178146744,1.7347168,861.16,860.04,0.72313209]
[1766178146945,1.7347168,861.16,860.05,0.72313209]
[1766178147145,1.7347168,861.16,860.06,0.72313209]
[1766178147446,1.7347168,861.16,860.07,0.72313209]
[1766178147645,1.7347168,861.14,859.77,0.86091378]
[1766178147843,1.7347168,861.14,859.78,0.72325467]
[1766178148043,1.7347168,861.13,859.79,0.72325467]
[1766178148342,1.7347168,861.13,859.8,0.72325467]
[1766178148548,1.7347168,861.13,859.81,0.72325467]
[1766178148745,1.7347168,861.13,859.82,0.72325467]
[1766178148946,1.7347168,861.13,859.83,0.72325467]
[1766178149244,1.7347168,861.13,859.84,0.72325467]
[1766178149450,1.7347168,861.13,859.85,0.72325467]
[1766178149649,1.7347168,861.13,859.86,0.72325467]
[1766178149949,1.7347168,861.13,859.87,0.72325467]
[1766178150148,1.7347168,861.13,859.88,0.72325467]
[1766178150349,1.7347168,861.13,859.89,0.72325467]
[1766178150648,1.7347168,861.13,859.9,0.72325467]
[1766178150848,1.7347168,861.13,859.91,0.72325467]
[1766178151052,1.7347168,861.13,859.92,0.72325467]